Cogmind - Beta 13 X1 @@@ ROGUE MODE // 2023.07.15 @ 15:32:38 Player: aoemica Result: Core destroyed Performance ------------- Evolutions (0) 0 Regions Visited (2) 400 Robots Destroyed (24) 120 Value Destroyed (585) 585 Prototype IDs (0) 0 Alien Tech Used (0) 0 Bonus (0) 0 TOTAL SCORE: 1105 Bonus ------- None Cogmind --------- Core Integrity 0/250 Matter 256/300 Energy 199/200 System Corruption 0% Temperature Cool (0) Movement Rolling (130) Ox2 Location -10/Subcaves Parts ------- > --- POWER (1) -------- Subdweller Power Source > --- PROPULSION (2) --- Subdweller Monowheel Subdweller Monowheel > --- UTILITY (2) ------ High-capacity Storage Unit Core Shielding > --- WEAPON (2) ------- Subdweller Laser Makeshift Hammer > --- INVENTORY (20) --- Subdweller Power Source Subdweller Power Source Subdweller Monowheel Subdweller Monowheel Medium Matter Pod (61) Cobbler Unit EM Pulse Gun Small Laser Subdweller Beam Cannon Assault Rifle Battle Rifle Battle Rifle Mining Laser Peak State ------------ > --- POWER ------------ Subdweller Power Source > --- PROPULSION ------- Subdweller Monowheel Subdweller Monowheel > --- UTILITY ---------- High-capacity Storage Unit Core Shielding > --- WEAPON ----------- Subdweller Laser Makeshift Hammer > --- INVENTORY -------- Subdweller Power Source Subdweller Power Source Subdweller Monowheel Subdweller Monowheel Medium Matter Pod Cobbler Unit EM Pulse Gun Small Laser Subdweller Beam Cannon Assault Rifle Battle Rifle Battle Rifle Mining Laser [Rating: 16] Favorites ----------- Power Ion Engine Engine Ion Engine Propulsion Light Treads Treads Light Treads Leg Aluminum Leg Wheel Subdweller Monowheel Utility Core Shielding Device Cobbler Unit Storage High-capacity Storage Unit Protection Core Shielding Weapon Light Cannon Energy Gun Medium Laser Ballistic Gun Battle Rifle Ballistic Cannon Light Cannon Impact Weapon Makeshift Hammer Build | -11 -10 -10 ------- Run | Jun Mat Sub Slots Evolved . | . . . Power . | . . . Propulsion . | . . . Utility . | . . . Weapon . | . . . Parts Attached 25 | . 7 18 Power 3 | . 1 2 Engine 3 | . 1 2 Core . | . . . Reactor . | . . . Propulsion 9 | . 2 7 Treads 4 | . 2 2 Leg . | . . . Wheel 5 | . . 5 Hover . | . . . Flight . | . . . Utility 6 | . 3 3 Device 1 | . . 1 Storage 3 | . 2 1 Processor . | . . . Hackware . | . . . Protection 2 | . 1 1 Artifact . | . . . Weapon 7 | . 1 6 Energy Gun 1 | . . 1 Energy Cannon . | . . . Ballistic Gun 4 | . . 4 Ballistic Cannon 1 | . 1 . Launcher . | . . . Special Weapon . | . . . Impact Weapon 1 | . . 1 Slashing Weapon . | . . . Piercing Weapon . | . . . Special Melee Weapon . | . . . Unidentified Prototypes . | . . . Parts Lost 12 | . 1 11 Power 3 | . 1 2 Propulsion 6 | . . 6 Utility . | . . . Weapon 3 | . . 3 Highest Loss Streak 3 | . 1 3 To Critical Strikes 1 | . . 1 Average Slot Usage (%) 96 | . 92 99 Engine 13 | . 13 13 Treads 22 | . 27 18 Wheel 5 | . . 8 Storage 13 | . 14 13 Protection 11 | . 7 13 Energy Gun 8 | . 14 4 Ballistic Gun 7 | . . 12 Ballistic Cannon 11 | . 13 10 Naked Turns . | . . . Heaviest Build 91 | 11 91 53 Greatest Support 40 | 20 40 40 Greatest Overweight (x) 4 | . 2 4 Average Overweight (x) 1 | . . 1 Largest Inventory Capacity 25 | 8 25 20 Average Capacity 18 | 8 16 19 Most Carried 14 | 6 14 14 Average Carried 10 | 6 9 11 Final Capacity 20 | 8 20 20 Final Carried 14 | 6 14 14 Class Distribution -------------------- 85% | Mutant 14% | Derelict-Mutant Dominant Class ---------------- Mutant | -10/Materials Mutant | -10/Subcaves Resources | -11 -10 -10 ----------- Run | Jun Mat Sub Matter Collected 878 | 176 137 565 Remotely . | . . . Salvage Created 654 | . 353 301 Parts 46 | . 26 20 Haulers Intercepted 2 | . 2 . Recyclers Shooed . | . . . Parts Field Recycled . | . . . Retrieved Matter . | . . . Parts Self-Destructed 9 | . . 9 Prevented . | . . . Kills | -11 -10 -10 ------- Run | Jun Mat Sub Combat Hostiles Destroyed 19 | . 11 8 Guns 10 | . 4 6 Cannons 9 | . 7 2 Classes Destroyed 6 | . 5 1 Worker 2 | . 2 . Hauler 2 | . 2 . Watcher 1 | . 1 . Swarmer 6 | . 6 . Grunt 5 | . 5 . Subdweller 8 | . . 8 Best Kill Streak 4 | . 4 2 Combat Bots Only 4 | . 4 2 Max Kills in Single Turn 2 | . 2 1 Gunslinging . | . . . Exploded . | . . . Melee . | . . . Uniques/NPCs Destroyed . | . . . Combat | -11 -10 -10 -------- Run | Jun Mat Sub Damage Taken 1597 | . 305 1292 Core 256 | . 43 213 Absorbed by Shields . | . . . Redirected to Shielding 47 | . . 47 Core Remaining (%) 100 | 100 . . Volleys Fired 126 | . 46 80 Largest 2 | . 2 2 Hottest 85 | . 85 85 Shots Fired 205 | . 70 135 Gun 114 | . 46 68 Cannon 91 | . 24 67 Launcher . | . . . Special . | . . . Kinetic 135 | . 24 111 Thermal 70 | . 46 24 Explosive . | . . . Electromagnetic . | . . . Robot Hit Streak 23 | . 12 23 Robot Miss Streak 3 | . 3 2 Penetration Max . | . . . Secondary Targets . | . . . Shots Hit Robots 144 | . 47 97 Core Hits 43 | . 23 20 Critical Kills 1 | . . 1 Critical Parts Destroyed . | . . . Critical Strikes 6 | . 2 4 Burn 3 | . 1 2 Destroy 1 | . . 1 Blast 2 | . 1 1 Melee Attacks 4 | . . 4 Impact 4 | . . 4 Slashing . | . . . Piercing . | . . . Sneak Attacks . | . . . Combat Hostiles . | . . . Follow-up Attacks . | . . . Damage Inflicted 1808 | . 717 1091 Guns 1100 | . 408 692 Cannons 702 | . 303 399 Explosions . | . . . Melee . | . . . Ramming 6 | . 6 . Kinetic 1271 | . 303 968 Thermal 531 | . 408 123 Explosive . | . . . Electromagnetic . | . . . Impact . | . . . Slashing . | . . . Piercing . | . . . Highest Corruption . | . . . Average Corruption . | . . . Corruption Purged . | . . . Corruption Blocked . | . . . Overload Shots . | . . . Overflow Damage . | . . . Projectiles . | . . . Explosions . | . . . Melee . | . . . Knockbacks 11 | . 5 6 Impact . | . . . Kinetic 11 | . 5 6 Secondary . | . . . Self-Inflicted Damage . | . . . Shots . | . . . Rammed 6 | . 4 2 Targets Rammed 6 | . 4 2 Kicked . | . . . Crushed . | . . . Highest Temperature 198 | . 198 . Average Temperature 42 | . 42 . Received Heat Transfer 378 | . 102 276 Siege Activations . | . . . Robots Corrupted . | . . . Combat Hostiles . | . . . Parts Fried . | . . . Impact Corruptions . | . . . Robots Melted . | . . . Combat Hostiles . | . . . Parts Melted 1 | . 1 . Heat Transferred 1776 | . 1258 518 Parts Sabotaged . | . . . Parts Stolen . | . . . Parts Stripped . | . . . Power Chain Reactions . | . . . Missiles Intercepted . | . . . Alert | -11 -10 -10 ------- Run | Jun Mat Sub Peak Influence 200 | . 200 . Initial . | . . . Average 53 | . 53 . Maximum Alert Level 1 | . 1 . Low Security (%) 97 | 100 97 . Level 1 2 | . 2 . Level 2 . | . . . Level 3 . | . . . Level 4 . | . . . Level 5 . | . . . High Security . | . . . Max Security . | . . . Squads Dispatched 2 | . 2 . Investigation . | . . . Extermination . | . . . Reinforcement 2 | . 2 . Assault . | . . . Garrison . | . . . Intercept . | . . . Searches Triggered . | . . . Construction Impeded . | . . . Haulers Reinforced . | . . . Active Scanning Responses . | . . . Cargo Convoy Interrupts . | . . . Stealth | -11 -10 -10 --------- Run | Jun Mat Sub Distress Signals 1 | . 1 . Communications Jammed . | . . . Distress Signals . | . . . Times Spotted 28 | . 19 9 Peak Tracking Total 5 | . 5 2 Tactical Retreats . | . . . Traps | -11 -10 -10 ------- Run | Jun Mat Sub Traps Triggered 2 | . . 2 Indirectly . | . . . Trap Hack Attempts . | . . . Triggered . | . . . Disarmed . | . . . Reprogrammed . | . . . Reused . | . . . Traps Extracted . | . . . Installed . | . . . Triggered . | . . . Machines | -11 -10 -10 ---------- Run | Jun Mat Sub Machines Disabled . | . . . Max in Single Turn . | . . . Machines Repaired . | . . . Machines Sabotaged . | . . . Overloaded Fab Kills . | . . . Hacking | -11 -10 -10 --------- Run | Jun Mat Sub Machines Accessed 2 | . 1 1 Terminals 1 | . 1 . Fabricators . | . . . Repair Stations . | . . . Recycling Units . | . . . Scanalyzers . | . . . Garrison Access . | . . . Total Hacks 6 | . 3 3 Successful 5 | . 2 3 Failed . | . . . Catastrophic . | . . . Database Lockouts 1 | . 1 . Manual 3 | . 3 . Terminals 3 | . 3 . Fabricators . | . . . Repair Stations . | . . . Recycling Units . | . . . Scanalyzers . | . . . Garrison Access . | . . . Terminal Hacks 4 | . 1 3 Record 3 | . . 3 Robot Analysis 1 | . 1 . Fabricator Hacks . | . . . Repair Station Hacks . | . . . Recycling Unit Hacks . | . . . Scanalyzer . | . . . Garrison Access Hacks . | . . . Unauthorized Hacks 1 | . 1 . Terminals 1 | . 1 . Botnet 1 | . 1 . Fabricators . | . . . Repair Stations . | . . . Recycling Units . | . . . Scanalyzers . | . . . Garrison Access . | . . . Data Cores Recovered . | . . . Used . | . . . Hacking Detections . | . . . Full Trace Events . | . . . Feedback Events . | . . . Feedback Blocked . | . . . Robot Schematics Acquired . | . . . Robots Built . | . . . Authchips . | . . . Time . | . . . Total Robot Build Rating . | . . . Part Schematics Acquired . | . . . Parts Built . | . . . Authchips . | . . . Time . | . . . Total Part Build Rating . | . . . Parts Repaired . | . . . Time . | . . . Parts Recycled . | . . . Recycled Matter . | . . . Retrieved Matter . | . . . Retrieved Components . | . . . Parts Scanalyzed . | . . . Part Schematics Acquired . | . . . Parts Damaged . | . . . Bothacking | -11 -10 -10 ------------ Run | Jun Mat Sub Used RIF Installer . | . . . Robots Hacked . | . . . Non-combat . | . . . Combat . | . . . Robot Hacks Applied . | . . . Relay Couplers Released . | . . . Fabnet Peak Effective % . | . . . Robots Rewired . | . . . Allies Hacked . | . . . Hacks Repelled . | . . . Allies | -11 -10 -10 -------- Run | Jun Mat Sub Total Allies . | . . . Largest Group . | . . . Highest-Rated Group . | . . . Highest-Rated Ally . | . . . Total Orders . | . . . Ally Attacks . | . . . Total Damage . | . . . Kills . | . . . Allies Corrupted . | . . . Allies Melted . | . . . Intel | -11 -10 -10 ------- Run | Jun Mat Sub Robot Analysis Total 1 | . 1 . Derelict Logs Recovered 1 | . . 1 Drone Launches . | . . . Drone Recoveries . | . . . Exploration | -11 -10 -10 ------------- Run | Jun Mat Sub Turns Passed 3267 | 4 1313 1950 Spaces Moved 1382 | 4 504 874 Core . | . . . Treads 961 | . 495 466 Legs 13 | 4 9 . Wheels 408 | . . 408 Hover . | . . . Flight . | . . . Fastest Speed 95 | 120 120 95 Average Speed 195 | 120 216 184 Slowest Speed 320 | 120 320 240 Overloaded Moves . | . . . Propulsion Burnouts . | . . . Robots Hopped . | . . . Cave-ins Triggered . | . . . Exploration Rate (%) 37 | 2 65 46 Regions Visited 2 Branch Regions 1 Pre-discovered Areas . | . . . Known Exits Taken . | . . . Unknown Exits Taken 2 | 1 1 . Scrap Searched . | . . . Spaces Dug 1 | . . 1 Terrain Destroyed 1 | . . 1 Melee 1 | . . 1 Projectile . | . . . AOE . | . . . Terrain Rammed . | . . . Walls Destroyed . | . . . Machines Disabled . | . . . Actions | -11 -10 -10 --------- Run | Jun Mat Sub Total 1725 | 3 653 1069 Wait 149 | . 74 75 Move 1380 | 3 503 874 Hop . | . . . Pick Up 23 | . 13 10 Fast Attach 10 | . 2 8 Attach 9 | . 1 8 Detach 3 | . 1 2 Swap 6 | . 4 2 Drop 9 | . 5 4 Fire 126 | . 46 80 Melee 4 | . . 4 Ram . | . . . Kick . | . . . Crush 6 | . 4 2 Escape Stasis . | . . . Rewire . | . . . Trap . | . . . Miscellaneous . | . . . Route ------- -11/Junkyard -10/Materials (discovered 5 exits: [*Mat x2] / [*Min x2] / *Sub) -10/Subcaves (discovered 2 exits: [*Mat x2]) History --------- Turn | Location | Event 1 | -11/Junkyard | Discovered new exit (range 1) 5 | -11/Junkyard | Entered Materials 17 | -10/Materials | Central database locked down 304 | -10/Materials | Build established: Mutant 549 | -10/Materials | Discovered new exit (range 15) 752 | -10/Materials | Discovered new exit (range 9) 849 | -10/Materials | Discovered new exit (range 14) 1087 | -10/Materials | Discovered new exit (range 6) 1306 | -10/Materials | Discovered new exit (range 6) 1318 | -10/Materials | Entered Subcaves 1561 | -10/Subcaves | Lost 3 parts (2n1w) 1808 | -10/Subcaves | A swath of the cavern ceiling suddenly collapsed 2129 | -10/Subcaves | Visited Clippyterm 2604 | -10/Subcaves | Discovered new exit (range 15) 2663 | -10/Subcaves | Lost 3 parts (3n) 2673 | -10/Subcaves | Core integrity fell below 50% 2675 | -10/Subcaves | Core integrity fell below 20% 2957 | -10/Subcaves | Discovered new exit (range 12) 2962 | -10/Subcaves | Shifting Twisted Machinery released Mak. Hammer 2965 | -10/Subcaves | Shifting Twisted Machinery released Sub. Beam Cannon 3090 | -10/Subcaves | Build established: Derelict-Mutant 3226 | -10/Subcaves | Learned Materials interactive machine intel 3244 | -10/Subcaves | Shifting Twisted Machinery released Sub. Power Source 3268 | -10/Subcaves | Core destroyed Last Messages --------------- 02909_ Acquired 35 matter. 02913_ Acquired Sub. Monowheel. 02917_ Acquired Sub. Power Source. 02934_ Sub. Monowheel shoots sparks and powers down. 02936_ Dropped Broken Sub. Monowheel. 02936_ Acquired Broken Sub. Monowheel. 02957_ EXIT=FOUND Mak. Hammer falls loose from the Twisted Machinery. Sub. Beam Cannon falls loose from the Twisted Machinery. 02975_ Acquired Sub. Beam Cannon. 02984_ Acquired Mak. Hammer. 03188_ Triggered Piercing Trap. 03188_ Spikes shoot up from the floor. 03188_ Critical hit (Impale). 03226_ Acquired derelict log, extracted data. Data stored: Materials interactive machine intel. Sub. Power Source falls loose from the Twisted Machinery. 03268_ Triggered Piercing Trap. 03268_ Spikes shoot up from the floor. 03268_ Critical hit (Impale). Map ----- +----------------------------------------------------+ | ?????????????????????????????????????????????????? | | ?????????????????????????????????????????????????? | | ?????????????????????????????????????????????????? | | ?????????????????????????????????????????????????? | | ?????????????????????????????????????????????????? | | ?????????????????????????????????????????????????? | | ?????????????????????????????????????????????????? | | ?????????????????????????????????????????????????? | | ?????????????????????????????????????????????????# | | ?????????????????????????????????????????????????# | | ?????????????????????????????????????????????????? | | ???????????????????##????????????????????????????? | | ??????????????????#"#????????????????????????????# | | ????????????????##""#????????????????????????????# | | ???????????????## "#????????????????????????????# | | ??????????????## *#????????????????????????????# | | ??????????????# #????????????????????????????? | | ??????????????# ##????????????????????????????? | | ??????????????# ##?????????????????????????????? | | ??????????????## ##?????????????????????????????? | | ???????????????## #?????????????????????????????? | | ???????????????#" #?????????????????????????????? | | ???????????????##" #?????????????????????????????? | | ???????????????## #???####????#########?????????? | | ???????????????# #???# ###### # # ##????????? | | ??????????????### ##### @ # # ####?????? | | ?????????????## # # ## ####### | | ?????????????# ^ ^# # ## | | ?????????????# ^ | | ?????????????## ## # ## | | ??????????????############# ### # ########## | | ??????????????????????????#^###?##### ##????????## | | ??????????????????????????###???????###??????????? | | ?????????????????????????????????????????????????? | | ?????????????????????????????????????????????????? | | ?????????????????????????????????????????????????? | | ?????????????????????????????????????????????????? | | ?????????????????????????????????????????????????? | | ?????????????????????????????????????????????????? | | ?????????????????????????????????????????????????? | | ?????????????????????????????????????????????????? | | ?????????????????????????????????????????????????? | | ?????????????????????????????????????????????????? | | ?????????????????????????????????????????????????? | | ?????????????????????????????????????????????????? | | ?????????????????????????????????????????????????? | | ?????????????????????????????????????????????????? | | ?????????????????????????????????????????????????? | | ?????????????????????????????????????????????????? | | ?????????????????????????????????????????????????? | +----------------------------------------------------+ Best States ------------- Heat Dissipation 25 Energy Generation 15 Energy Capacity 250 Matter Stores 300 Matter Capacity 300 Sight Range 16 Terrain Scan Density 10 Core Shielding 20 Evasion (%) 45 Recoil Reduction 2 Item Schematics ----------------- None Robot Schematics ------------------ None Fabricated ------------ Nothing Alien Tech Used ----------------- None Achievements -------------- None Challenges ------------ None Game ------ Seed ThermicAssemblyEdition Manual? 0 Play Time 00:18:23 Cumulative 912.3 hours Start 2023.07.15 @ 15:19:03 End 2023.07.15 @ 15:32:38 Sessions 1 Manual Loads 0 Difficulty Rogue Special Mode None Game No. 415 Rogue 414 Adventurer 1 Explorer 0 Win Type - Total 136 Types 33/12/21/4/2/1/58/3/2 Lore% 96 Gallery% 98 Achievement% 92 Wizard Run 0 Options --------- ASCII 1 Keyboard 1 Movement Numpad Keybinds 0 Fullscreen 0 Font 18/Smallcaps Map View 76x50 Tactical HUD 1 Map Filters NONE Filters NONE Steam 1 RUN: 65a13c7d-5779-48e2-a564-83d82df53ec1